[Event "Halifax Summer op"]
[Site "Halifax CAN"]
[Date "2019.06.29"]
[Round "3.2"]
[White "Ferreira, Paulo"]
[Black "Kapra, Jerjis"]
[Result "1/2-1/2"]
[ECO "A12"]
[WhiteElo "1818"]
[BlackElo "1658"]
[PlyCount "67"]
[EventDate "2019.05.28"]
[EventType "swiss"]
[EventRounds "5"]
[EventCountry "CAN"]
[TimeControl "2+30"]

1. Nf3 {[%emt 0:00:07]} d5 {[%emt 0:00:08]} 2. c4 {[%emt 0:00:05]} c6 {
[%emt 0:00:00]} 3. b3 {[%emt 0:00:07]} Bg4 {[%emt 0:01:25]} 4. g3 {
[%emt 0:01:05]} Nd7 {[%emt 0:02:40]} 5. Bg2 {[%emt 0:00:33]} Ngf6 {
[%emt 0:02:15]} 6. Bb2 {[%emt 0:00:00]} e6 {[%emt 0:02:08]} 7. O-O {
[%emt 0:00:17]} Be7 {[%emt 0:04:50]} 8. d3 {[%emt 0:00:08]} O-O {[%emt 0:00:15]
} 9. Nbd2 {[%emt 0:00:04]} Qb6 {[%emt 0:02:00]} 10. Qc2 {[%emt 0:00:44]} h6 {
[%emt 0:03:19]} 11. a3 {[%emt 0:03:20]} a5 {[%emt 0:00:39]} 12. Rac1 {
[%emt 0:01:24]} Rad8 {[%emt 0:06:22]} 13. Rfe1 {[%emt 0:01:19]} Bc5 {
[%emt 0:01:49]} 14. d4 {[%emt 0:01:00]} Be7 {[%emt 0:00:00]} 15. c5 {
[%emt 0:07:08]} Qc7 {[%emt 0:00:27]} 16. b4 {[%emt 0:01:57]} axb4 {
[%emt 0:01:14]} 17. axb4 {[%emt 0:00:26]} Bf5 {[%emt 0:00:11]} 18. Qb3 {
[%emt 0:00:38]} Ne4 {[%emt 0:01:30]} 19. Nxe4 {[%emt 0:04:05]} Bxe4 {
[%emt 0:00:11]} 20. Nd2 {[%emt 0:01:06]} Bxg2 {[%emt 0:00:48]} 21. Kxg2 {
[%emt 0:00:08]} f5 {[%emt 0:00:30]} 22. Nf3 {[%emt 0:08:52]} g5 {[%emt 0:03:50]
} 23. e3 {[%emt 0:00:00]} Bf6 {[%emt 0:01:40]} 24. Rc2 {[%emt 0:03:25]} e5 {
[%emt 0:08:08]} 25. dxe5 {[%emt 0:00:33]} Bxe5 {[%emt 0:00:14]} 26. Nxe5 {
[%emt 0:03:15]} Nxe5 {[%emt 0:00:07]} 27. Qc3 {[%emt 0:01:22]} Ng6 {
[%emt 0:01:13]} 28. Rd1 {[%emt 0:00:00]} Rde8 {[%emt 0:02:44]} 29. Re1 {
[%emt 0:05:50]} Qe5 {[%emt 0:02:05]} 30. Qxe5 {[%emt 0:06:08]} Nxe5 {
[%emt 0:00:09]} 31. Bxe5 {[%emt 0:00:11]} Rxe5 {[%emt 0:00:21]} 32. Ra1 {
[%emt 0:00:08]} Ree8 {[%emt 0:05:01]} 33. Ra7 {[%emt 0:00:30]} Rf7 {
[%emt 0:00:26]} 34. Rca2 {[%emt 0:00:35]} 1/2-1/2

[Event "Halifax Summer op"]
[Site "Halifax CAN"]
[Date "2019.06.29"]
[Round "3.3"]
[White "MacNeil, Conrad"]
[Black "Turner, Peter"]
[Result "0-1"]
[ECO "B62"]
[WhiteElo "1684"]
[BlackElo "1978"]
[PlyCount "59"]
[EventDate "2019.05.28"]
[EventType "swiss"]
[EventRounds "5"]
[EventCountry "CAN"]
[TimeControl "2+30"]

1. e4 {[%emt 0:00:00]} c5 {[%emt 0:00:05]} 2. Bc4 {[%emt 0:00:32]} e6 {
[%emt 0:00:00]} 3. Nc3 {[%emt 0:00:16]} Nc6 {[%emt 0:00:08]} 4. Nf3 {
[%emt 0:00:19]} d6 {[%emt 0:00:12]} 5. d4 {[%emt 0:00:22]} cxd4 {[%emt 0:00:34]
} 6. Nxd4 {[%emt 0:00:00]} Nf6 {[%emt 0:00:46]} 7. Bg5 {[%emt 0:03:42]} Be7 {
[%emt 0:01:00]} 8. O-O {[%emt 0:02:39]} a6 {[%emt 0:00:27]} 9. Nxc6 {
[%emt 0:05:49]} bxc6 {[%emt 0:00:10]} 10. Bb3 {[%emt 0:04:20]} O-O {
[%emt 0:00:49]} 11. Re1 {[%emt 0:03:52]} Qc7 {[%emt 0:01:56]} 12. Qe2 {
[%emt 0:09:16]} Bb7 {[%emt 0:04:00]} 13. Rad1 {[%emt 0:07:58]} h6 {
[%emt 0:03:09]} 14. Bh4 {[%emt 0:04:39]} Rfe8 {[%emt 0:05:00]} 15. Rd3 {
[%emt 0:13:15]} d5 {[%emt 0:15:24]} 16. Bg3 {[%emt 0:02:35]} Qa5 {
[%emt 0:02:01]} 17. Red1 {[%emt 0:11:36]} Bf8 {[%emt 0:02:11]} 18. f3 {
[%emt 0:05:35]} Nh5 {[%emt 0:05:27]} 19. f4 {[%emt 0:01:22]} Nxg3 {
[%emt 0:01:47]} 20. Rxg3 {[%emt 0:01:33]} c5 {[%emt 0:06:49]} 21. a3 {
[%emt 0:02:27]} Rad8 {[%emt 0:07:29]} 22. Ba4 {[%emt 0:02:08]} Re7 {
[%emt 0:00:08]} 23. b3 {[%emt 0:00:00]} dxe4 {[%emt 0:01:57]} 24. Re1 {
[%emt 0:09:32]} f5 {[%emt 0:04:08]} 25. Qh5 {[%emt 0:04:48]} Rd2 {
[%emt 0:06:37]} 26. h4 {[%emt 0:11:21]} Qd8 {[%emt 0:00:00]} 27. Qxh6 {
[%emt 0:01:42]} Qd4+ {[%emt 0:01:10]} 28. Kh2 {[%emt 0:00:18]} Qf2 {
[%emt 0:04:50]} 29. Ree3 {[%emt 0:03:46]} Qxe3 {[%emt 0:03:57]} 30. Kh1 {
[%emt 0:06:09]} 0-1

[Event "Halifax Summer op"]
[Site "Halifax CAN"]
[Date "2019.06.29"]
[Round "3.4"]
[White "Saunders, Stephen"]
[Black "Parker, Laurie"]
[Result "1/2-1/2"]
[ECO "E81"]
[WhiteElo "1837"]
[BlackElo "1513"]
[PlyCount "40"]
[EventDate "2019.05.28"]
[EventType "swiss"]
[EventRounds "5"]
[EventCountry "CAN"]
[TimeControl "2+30"]

1. d4 {[%emt 0:00:04]} Nf6 {[%emt 0:02:31]} 2. c4 {[%emt 0:00:17]} g6 {
[%emt 0:00:00]} 3. f3 {[%emt 0:00:19]} Bg7 {[%emt 0:06:38]} 4. e4 {
[%emt 0:00:19]} d6 {[%emt 0:00:02]} 5. Nc3 {[%emt 0:00:19]} O-O {[%emt 0:00:18]
} 6. Bg5 {[%emt 0:00:00]} h6 {[%emt 0:08:22]} 7. Be3 {[%emt 0:00:31]} Nbd7 {
[%emt 0:06:10]} 8. Nh3 {[%emt 0:02:11]} c6 {[%emt 0:05:30]} 9. Nf2 {
[%emt 0:02:37]} e5 {[%emt 0:00:00]} 10. d5 {[%emt 0:02:58]} c5 {[%emt 0:05:41]}
11. Qd2 {[%emt 0:01:52]} h5 {[%emt 0:02:47]} 12. Be2 {[%emt 0:03:03]} a6 {
[%emt 0:04:09]} 13. O-O {[%emt 0:00:00]} Nh7 {[%emt 0:07:26]} 14. Bh6 {
[%emt 0:16:11]} Ndf6 {[%emt 0:02:00]} 15. Be3 {[%emt 0:03:32]} Bd7 {
[%emt 0:03:44]} 16. a3 {[%emt 0:03:24]} Rb8 {[%emt 0:00:00]} 17. b4 {
[%emt 0:01:40]} b6 {[%emt 0:03:52]} 18. Rab1 {[%emt 0:03:05]} Kh8 {
[%emt 0:04:20]} 19. bxc5 {[%emt 0:04:03]} bxc5 {[%emt 0:00:03]} 20. Rxb8 {
[%emt 0:00:42]} Qxb8 {[%emt 0:00:03]} 1/2-1/2

[Event "Halifax Summer op"]
[Site "Halifax CAN"]
[Date "2019.06.30"]
[Round "4.1"]
[White "Kapra, Jerjis"]
[Black "Heran-Boily, Samuel"]
[Result "1-0"]
[ECO "C45"]
[WhiteElo "1658"]
[BlackElo "1790"]
[PlyCount "135"]
[EventDate "2019.05.28"]
[EventType "swiss"]
[EventRounds "5"]
[EventCountry "CAN"]
[TimeControl "2+30"]

1. e4 {[%emt 0:00:00]} e5 {[%emt 0:00:14]} 2. Nf3 {[%emt 0:00:04]} Nc6 {
[%emt 0:00:14]} 3. d4 {[%emt 0:00:04]} exd4 {[%emt 0:01:11]} 4. Nxd4 {
[%emt 0:00:29]} Bc5 {[%emt 0:01:38]} 5. Be3 {[%emt 0:00:07]} Qf6 {
[%emt 0:05:37]} 6. c3 {[%emt 0:00:06]} Nge7 {[%emt 0:04:09]} 7. Bc4 {
[%emt 0:00:09]} a6 {[%emt 0:22:18]} 8. O-O {[%emt 0:00:49]} O-O {[%emt 0:02:12]
} 9. f4 {[%emt 0:12:22]} d6 {[%emt 0:00:00]} 10. Kh1 {[%emt 0:01:02]} b5 {
[%emt 0:06:14]} 11. Be2 {[%emt 0:05:07]} Bb7 {[%emt 0:07:40]} 12. Qd3 {
[%emt 0:07:03]} Rfe8 {[%emt 0:08:09]} 13. Nd2 {[%emt 0:05:57]} Ng6 {
[%emt 0:07:56]} 14. Bf3 {[%emt 0:10:51]} Nh4 {[%emt 0:18:00]} 15. Bh5 {
[%emt 0:04:35]} Ng6 {[%emt 0:02:20]} 16. Bf3 {[%emt 0:01:13]} Nh4 {
[%emt 0:00:18]} 17. Bh5 {[%emt 0:00:10]} Ng6 {[%emt 0:02:49]} 18. g3 {
[%emt 0:00:00]} Nxd4 {[%emt 0:00:36]} 19. cxd4 {[%emt 0:00:18]} Bb4 {
[%emt 0:00:31]} 20. Bf3 {[%emt 0:00:32]} Qe7 {[%emt 0:00:47]} 21. e5 {
[%emt 0:05:11]} Bxf3+ {[%emt 0:00:20]} 22. Rxf3 {[%emt 0:00:44]} dxe5 {
[%emt 0:00:19]} 23. fxe5 {[%emt 0:00:38]} Qe6 {[%emt 0:03:36]} 24. Qb3 {
[%emt 0:10:15]} Ba5 {[%emt 0:02:00]} 25. Raf1 {[%emt 0:00:43]} Re7 {
[%emt 0:07:51]} 26. Qxe6 {[%emt 0:17:06]} fxe6 {[%emt 0:00:11]} 27. Nb3 {
[%emt 0:01:00]} Bb6 {[%emt 0:00:43]} 28. Rc1 {[%emt 0:01:10]} Rf8 {
[%emt 0:01:14]} 29. Kg2 {[%emt 0:00:25]} Rxf3 {[%emt 0:00:00]} 30. Kxf3 {
[%emt 0:00:06]} Rf7+ {[%emt 0:00:21]} 31. Ke4 {[%emt 0:00:59]} Rd7 {
[%emt 0:04:49]} 32. Nc5 {[%emt 0:00:14]} Bxc5 {[%emt 0:00:10]} 33. Rxc5 {
[%emt 0:00:10]} Ne7 {[%emt 0:00:49]} 34. Bg5 {[%emt 0:01:49]} Nd5 {
[%emt 0:03:00]} 35. Rc6 {[%emt 0:01:32]} Nb4 {[%emt 0:01:49]} 36. Rxe6 {
[%emt 0:00:56]} Kf7 {[%emt 0:00:14]} 37. d5 {[%emt 0:03:04]} h6 {[%emt 0:02:23]
} 38. Be3 {[%emt 0:00:49]} Rxd5 {[%emt 0:00:32]} 39. Rxa6 {[%emt 0:00:16]}
Rxe5+ {[%emt 0:00:00]} 40. Kxe5 {[%emt 0:00:09]} Nxa6 {[%emt 0:00:07]} 41. a3 {
[%emt 0:00:23]} Nb8 {[%emt 0:00:29]} 42. Kd5 {[%emt 0:00:26]} Ke7 {
[%emt 0:00:25]} 43. Kc5 {[%emt 0:01:07]} b4 {[%emt 0:02:36]} 44. Kxb4 {
[%emt 0:00:16]} Nc6+ {[%emt 0:00:00]} 45. Kb5 {[%emt 0:00:46]} Kd7 {
[%emt 0:08:27]} 46. a4 {[%emt 0:00:00]} g5 {[%emt 0:02:01]} 47. a5 {
[%emt 0:00:00]} Ne5 {[%emt 0:00:41]} 48. a6 {[%emt 0:00:00]} c6+ {
[%emt 0:00:15]} 49. Kb6 {[%emt 0:00:40]} Nc4+ {[%emt 0:00:06]} 50. Kb7 {
[%emt 0:00:10]} Nd6+ {[%emt 0:00:36]} 51. Kb8 {[%emt 0:00:17]} Nb5 {
[%emt 0:00:37]} 52. a7 {[%emt 0:00:19]} Nc7 {[%emt 0:00:32]} 53. a8=Q {
[%emt 0:00:21]} Nxa8 {[%emt 0:00:17]} 54. Kxa8 {[%emt 0:00:05]} Kd6 {
[%emt 0:00:10]} 55. Kb7 {[%emt 0:00:27]} Kd5 {[%emt 0:00:07]} 56. Kb6 {
[%emt 0:00:11]} Kd6 {[%emt 0:01:00]} 57. g4 {[%emt 0:00:38]} Kd5 {
[%emt 0:00:18]} 58. Bd2 {[%emt 0:00:44]} Ke4 {[%emt 0:01:02]} 59. Kxc6 {
[%emt 0:00:17]} Kf3 {[%emt 0:00:33]} 60. b4 {[%emt 0:00:09]} Kg2 {
[%emt 0:00:27]} 61. b5 {[%emt 0:00:21]} Kxh2 {[%emt 0:00:06]} 62. b6 {
[%emt 0:00:11]} Kg3 {[%emt 0:00:05]} 63. b7 {[%emt 0:00:12]} Kxg4 {
[%emt 0:00:09]} 64. b8=Q {[%emt 0:00:17]} Kf5 {[%emt 0:00:43]} 65. Qh2 {
[%emt 0:00:12]} Kg6 {[%emt 0:00:11]} 66. Kd6 {[%emt 0:00:18]} h5 {
[%emt 0:00:14]} 67. Ke6 {[%emt 0:00:12]} g4 {[%emt 0:00:19]} 68. Qh4 {
[%emt 0:00:13]} 1-0

[Event "Halifax Summer op"]
[Site "Halifax CAN"]
[Date "2019.06.30"]
[Round "4.2"]
[White "Turner, Peter"]
[Black "MacNeil, Walter"]
[Result "0-1"]
[ECO "D13"]
[WhiteElo "1978"]
[BlackElo "1715"]
[PlyCount "70"]
[EventDate "2019.05.28"]
[EventType "swiss"]
[EventRounds "5"]
[EventCountry "CAN"]
[TimeControl "2+30"]

1. d4 {[%emt 0:00:28]} d5 {[%emt 0:00:45]} 2. c4 {[%emt 0:00:11]} c6 {
[%emt 0:00:00]} 3. cxd5 {[%emt 0:00:41]} cxd5 {[%emt 0:00:07]} 4. Nc3 {
[%emt 0:00:30]} Nf6 {[%emt 0:03:41]} 5. Nf3 {[%emt 0:02:09]} Nc6 {
[%emt 0:06:55]} 6. g3 {[%emt 0:04:29]} Bf5 {[%emt 0:11:12]} 7. Bg2 {
[%emt 0:02:12]} e6 {[%emt 0:09:07]} 8. O-O {[%emt 0:00:15]} h6 {[%emt 0:07:21]}
9. a3 {[%emt 0:03:58]} Bd6 {[%emt 0:00:00]} 10. b4 {[%emt 0:06:55]} Rc8 {
[%emt 0:07:07]} 11. Bb2 {[%emt 0:08:02]} O-O {[%emt 0:01:54]} 12. Re1 {
[%emt 0:10:50]} a5 {[%emt 0:13:46]} 13. b5 {[%emt 0:08:21]} Qb6 {[%emt 0:02:32]
} 14. bxc6 {[%emt 0:16:07]} Qxb2 {[%emt 0:00:00]} 15. Na4 {[%emt 0:07:14]} Qb5
{[%emt 0:04:15]} 16. cxb7 {[%emt 0:05:25]} Qxb7 {[%emt 0:00:34]} 17. Ra2 {
[%emt 0:06:17]} Qc7 {[%emt 0:08:20]} 18. Qd2 {[%emt 0:10:26]} Ne4 {
[%emt 0:16:20]} 19. Qd1 {[%emt 0:09:18]} Qc4 {[%emt 0:04:00]} 20. Ra1 {
[%emt 0:04:27]} Nc3 {[%emt 0:01:42]} 21. Nxc3 {[%emt 0:03:06]} Qxc3 {
[%emt 0:00:19]} 22. a4 {[%emt 0:01:07]} Bc2 {[%emt 0:04:03]} 23. Qc1 {
[%emt 0:01:11]} Bb4 {[%emt 0:00:23]} 24. e3 {[%emt 0:01:25]} Qb3 {
[%emt 0:01:00]} 25. Re2 {[%emt 0:00:55]} Bd3 {[%emt 0:00:38]} 26. Qb2 {
[%emt 0:00:35]} Qxb2 {[%emt 0:00:51]} 27. Rxb2 {[%emt 0:00:13]} Bc3 {
[%emt 0:00:10]} 28. Rb3 {[%emt 0:01:03]} Bxa1 {[%emt 0:00:11]} 29. Rxd3 {
[%emt 0:00:04]} Rc1+ {[%emt 0:00:00]} 30. Bf1 {[%emt 0:00:08]} Rb8 {
[%emt 0:00:28]} 31. Kg2 {[%emt 0:00:04]} Rb4 {[%emt 0:09:02]} 32. Ra3 {
[%emt 0:00:00]} f6 {[%emt 0:01:28]} 33. Bb5 Bc3 {[%emt 0:00:38]} 34. g4 {
[%emt 0:00:00]} Rb2 {[%emt 0:00:35]} 35. Bd3 {[%emt 0:00:00]} Bb4 {
[%emt 0:00:25]} 0-1

[Event "Halifax Summer op"]
[Site "Halifax CAN"]
[Date "2019.06.30"]
[Round "4.3"]
[White "Evoy, Darin"]
[Black "Saunders, Stephen"]
[Result "0-1"]
[ECO "A85"]
[WhiteElo "1500"]
[BlackElo "1837"]
[PlyCount "48"]
[EventDate "2019.05.28"]
[EventType "swiss"]
[EventRounds "5"]
[EventCountry "CAN"]
[TimeControl "2+30"]

1. d4 {[%emt 0:00:07]} f5 {[%emt 0:00:15]} 2. c4 {[%emt 0:00:44]} Nf6 {
[%emt 0:00:00]} 3. Nc3 {[%emt 0:00:41]} g6 {[%emt 0:00:24]} 4. Nf3 {
[%emt 0:01:52]} Bg7 {[%emt 0:00:23]} 5. Bg5 {[%emt 0:03:02]} O-O {
[%emt 0:01:49]} 6. Bxf6 {[%emt 0:00:00]} Bxf6 {[%emt 0:01:28]} 7. e4 {
[%emt 0:00:25]} fxe4 {[%emt 0:08:48]} 8. Nxe4 {[%emt 0:01:33]} d5 {
[%emt 0:02:40]} 9. Nc3 {[%emt 0:20:56]} dxc4 {[%emt 0:09:42]} 10. Bxc4+ {
[%emt 0:00:57]} Kh8 {[%emt 0:00:50]} 11. Qd2 {[%emt 0:03:00]} Nc6 {
[%emt 0:05:47]} 12. d5 {[%emt 0:09:46]} Ne5 {[%emt 0:05:37]} 13. Nxe5 {
[%emt 0:11:40]} Bxe5 {[%emt 0:00:44]} 14. h3 {[%emt 0:00:27]} a6 {
[%emt 0:11:00]} 15. a4 {[%emt 0:08:58]} Bf5 {[%emt 0:07:42]} 16. g4 {
[%emt 0:13:58]} Bd7 {[%emt 0:01:00]} 17. Qe2 {[%emt 0:01:44]} Bg7 {
[%emt 0:03:35]} 18. h4 {[%emt 0:00:00]} Rf4 {[%emt 0:06:52]} 19. f3 {
[%emt 0:06:09]} Qf8 {[%emt 0:04:50]} 20. Rh3 {[%emt 0:02:57]} Qf6 {
[%emt 0:05:05]} 21. O-O-O {[%emt 0:11:34]} Rf8 {[%emt 0:03:09]} 22. Ne4 {
[%emt 0:04:00]} Rxe4 {[%emt 0:02:14]} 23. fxe4 {[%emt 0:00:35]} Bxg4 {
[%emt 0:00:34]} 24. e5 {[%emt 0:03:57]} Qf4+ {[%emt 0:03:37]} 0-1

[Event "Halifax Summer op"]
[Site "Halifax CAN"]
[Date "2019.06.30"]
[Round "4.4"]
[White "Sullivan, Madoc"]
[Black "Cashin, Ken"]
[Result "0-1"]
[ECO "E11"]
[WhiteElo "1724"]
[BlackElo "1765"]
[PlyCount "94"]
[EventDate "2019.05.28"]
[EventType "swiss"]
[EventRounds "5"]
[EventCountry "CAN"]
[TimeControl "2+30"]

1. d4 {[%emt 0:00:20]} Nf6 {[%emt 0:00:23]} 2. c4 {[%emt 0:00:56]} e6 {
[%emt 0:00:00]} 3. Nf3 {[%emt 0:00:56]} Bb4+ {[%emt 0:00:15]} 4. Bd2 {
[%emt 0:01:08]} Qe7 {[%emt 0:00:22]} 5. e3 {[%emt 0:00:48]} Nc6 {[%emt 0:01:01]
} 6. a3 {[%emt 0:00:30]} Bxd2+ {[%emt 0:00:23]} 7. Nbxd2 {[%emt 0:00:27]} d6 {
[%emt 0:00:48]} 8. Bd3 {[%emt 0:00:31]} O-O {[%emt 0:00:20]} 9. O-O {
[%emt 0:00:44]} e5 {[%emt 0:01:10]} 10. Qc2 {[%emt 0:01:10]} h6 {[%emt 0:01:25]
} 11. h3 {[%emt 0:01:33]} Re8 {[%emt 0:01:38]} 12. Ne4 {[%emt 0:00:48]} exd4 {
[%emt 0:00:40]} 13. Nxf6+ {[%emt 0:01:07]} Qxf6 {[%emt 0:00:39]} 14. exd4 {
[%emt 0:00:35]} Nxd4 {[%emt 0:00:00]} 15. Nxd4 {[%emt 0:00:36]} Qxd4 {
[%emt 0:00:13]} 16. Rad1 {[%emt 0:00:00]} Qf6 {[%emt 0:01:17]} 17. Rfe1 {
[%emt 0:00:50]} Bd7 {[%emt 0:00:38]} 18. Be4 {[%emt 0:02:21]} Bc6 {
[%emt 0:07:58]} 19. b4 {[%emt 0:00:41]} Bxe4 {[%emt 0:01:22]} 20. Rxe4 {
[%emt 0:00:36]} Re5 {[%emt 0:00:57]} 21. Rde1 {[%emt 0:01:00]} Rae8 {
[%emt 0:00:29]} 22. f4 {[%emt 0:00:47]} Rxe4 {[%emt 0:01:16]} 23. Rxe4 {
[%emt 0:00:12]} Rxe4 {[%emt 0:02:32]} 24. Qxe4 {[%emt 0:00:15]} c6 {
[%emt 0:04:18]} 25. Kh2 {[%emt 0:00:38]} Qe6 {[%emt 0:00:31]} 26. Qd4 {
[%emt 0:00:00]} b6 {[%emt 0:00:51]} 27. a4 {[%emt 0:00:42]} c5 {[%emt 0:01:41]}
28. bxc5 {[%emt 0:00:31]} dxc5 {[%emt 0:01:05]} 29. Qd3 {[%emt 0:00:33]} Qe8 {
[%emt 0:07:16]} 30. Qc2 {[%emt 0:02:17]} Qe3 {[%emt 0:00:47]} 31. Qf5 {
[%emt 0:00:00]} Qe6 {[%emt 0:01:59]} 32. Qd3 {[%emt 0:00:13]} Qe8 {
[%emt 0:01:40]} 33. Qc2 {[%emt 0:00:36]} g6 {[%emt 0:00:13]} 34. Qd1 {
[%emt 0:00:50]} Qe4 {[%emt 0:00:00]} 35. Qc1 {[%emt 0:00:49]} Kg7 {
[%emt 0:02:34]} 36. Kg3 {[%emt 0:00:23]} h5 {[%emt 0:00:58]} 37. Qc3+ {
[%emt 0:00:40]} Kh7 {[%emt 0:02:10]} 38. Qc1 {[%emt 0:00:47]} Qd4 {
[%emt 0:02:00]} 39. Kh2 {[%emt 0:01:06]} Qd3 {[%emt 0:02:00]} 40. h4 {
[%emt 0:02:18]} Qb3 {[%emt 0:02:09]} 41. Qa1 {[%emt 0:04:52]} Qxc4 {
[%emt 0:08:49]} 42. Qf6 {[%emt 0:00:09]} Qe6 {[%emt 0:01:13]} 43. Qd8 {
[%emt 0:00:46]} a5 {[%emt 0:03:17]} 44. Qc7 {[%emt 0:00:18]} Kg7 {
[%emt 0:02:03]} 45. g3 {[%emt 0:00:55]} c4 {[%emt 0:00:48]} 46. Kg2 {
[%emt 0:00:16]} Qd5+ {[%emt 0:00:00]} 47. Kh3 {[%emt 0:00:21]} Qh1# {
[%emt 0:00:31]} 0-1

[Event "Halifax Summer op"]
[Site "Halifax CAN"]
[Date "2019.06.30"]
[Round "5.1"]
[White "MacNeil, Walter"]
[Black "Kapra, Jerjis"]
[Result "1/2-1/2"]
[ECO "D05"]
[WhiteElo "1715"]
[BlackElo "1658"]
[PlyCount "22"]
[EventDate "2019.05.28"]
[EventType "swiss"]
[EventRounds "5"]
[EventCountry "CAN"]
[TimeControl "2+30"]

1. d4 {[%emt 0:00:40]} Nf6 {[%emt 0:00:07]} 2. Nf3 {[%emt 0:00:07]} e6 {
[%emt 0:00:06]} 3. e3 {[%emt 0:00:04]} c5 {[%emt 0:00:18]} 4. Bd3 {
[%emt 0:00:13]} Nc6 {[%emt 0:00:19]} 5. O-O {[%emt 0:00:29]} d5 {[%emt 0:07:03]
} 6. b3 {[%emt 0:07:19]} Bd7 {[%emt 0:03:53]} 7. Bb2 {[%emt 0:01:39]} Bd6 {
[%emt 0:01:46]} 8. Nbd2 {[%emt 0:00:58]} cxd4 {[%emt 0:01:45]} 9. exd4 {
[%emt 0:01:08]} Rc8 {[%emt 0:00:13]} 10. a3 {[%emt 0:01:50]} O-O {
[%emt 0:02:35]} 11. Ne5 {[%emt 0:00:00]} Qb6 {[%emt 0:16:16]} 1/2-1/2

[Event "Halifax Summer op"]
[Site "Halifax CAN"]
[Date "2019.06.30"]
[Round "5.2"]
[White "Heran-Boily, Samuel"]
[Black "Saunders, Stephen"]
[Result "1/2-1/2"]
[ECO "B50"]
[WhiteElo "1790"]
[BlackElo "1837"]
[PlyCount "61"]
[EventDate "2019.05.28"]
[EventType "swiss"]
[EventRounds "5"]
[EventCountry "CAN"]
[TimeControl "2+30"]

1. e4 {[%emt 0:00:00]} c5 {[%emt 0:00:00]} 2. Nf3 {[%emt 0:00:00]} d6 {
[%emt 0:00:00]} 3. Bc4 {[%emt 0:00:00]} e6 {[%emt 0:00:00]} 4. O-O {
[%emt 0:00:00]} Nf6 {[%emt 0:00:00]} 5. Re1 {[%emt 0:00:00]} Be7 {
[%emt 0:00:00]} 6. c3 {[%emt 0:00:00]} O-O {[%emt 0:00:00]} 7. d4 {
[%emt 0:00:00]} Nc6 {[%emt 0:00:00]} 8. Bg5 {[%emt 0:00:00]} cxd4 {
[%emt 0:00:00]} 9. Nxd4 {[%emt 0:00:00]} Qb6 {[%emt 0:00:00]} 10. Bb3 {
[%emt 0:00:00]} a6 {[%emt 0:00:00]} 11. Na3 {[%emt 0:00:00]} Nxd4 {
[%emt 0:00:00]} 12. cxd4 {[%emt 0:00:00]} h6 {[%emt 0:00:00]} 13. Bh4 {
[%emt 0:00:00]} Qd8 {[%emt 0:00:00]} 14. Rc1 {[%emt 0:00:00]} b5 {
[%emt 0:00:00]} 15. d5 {[%emt 0:00:00]} e5 {[%emt 0:00:00]} 16. Nc2 {
[%emt 0:00:00]} Bb7 {[%emt 0:00:00]} 17. f3 {[%emt 0:05:21]} Qd7 {
[%emt 0:11:37]} 18. Ne3 {[%emt 0:00:00]} Rfc8 {[%emt 0:04:00]} 19. Nf5 {
[%emt 0:04:35]} Bd8 {[%emt 0:02:28]} 20. Qd2 {[%emt 0:07:50]} Kh7 {
[%emt 0:01:56]} 21. g4 {[%emt 0:04:46]} Ng8 {[%emt 0:00:00]} 22. Bf2 {
[%emt 0:04:19]} g6 {[%emt 0:03:48]} 23. Ne3 {[%emt 0:01:50]} Bg5 {
[%emt 0:03:03]} 24. h4 {[%emt 0:02:08]} Bf4 {[%emt 0:03:49]} 25. Qa5 {
[%emt 0:03:22]} Nf6 {[%emt 0:07:01]} 26. Rxc8 {[%emt 0:03:55]} Rxc8 {
[%emt 0:00:00]} 27. Ng2 {[%emt 0:03:37]} g5 {[%emt 0:02:53]} 28. Nxf4 {
[%emt 0:01:03]} gxf4 {[%emt 0:00:46]} 29. Kf1 {[%emt 0:03:19]} Nxg4 {
[%emt 0:04:10]} 30. fxg4 {[%emt 0:00:17]} Qxg4 {[%emt 0:00:45]} 31. Bd1 {
[%emt 0:01:26]} 1/2-1/2